bitfinex/quotes_BTCUSD_20240826
["timestamp","ask_amount","ask_price","bid_price","bid_amount"]
[1724655579896,0.00753019,63795.0,63794.0,2.20668157]
[1724655580101,0.00853019,63795.0,63794.0,1.90082335]
[1724655580307,0.00753019,63795.0,63794.0,1.89982335]
[1724655580551,0.00753019,63795.0,63794.0,1.80175849]
[1724655580751,0.00253019,63795.0,63794.0,1.81075849]
[1724655580952,0.00253019,63795.0,63794.0,1.80875849]
[1724655581155,0.00234153,63795.0,63794.0,1.90682386]
[1724655581284,0.00234153,63795.0,63794.0,1.80875849]
[1724655582318,0.00334153,63795.0,63794.0,1.90782307]
[1724655582740,0.00334153,63795.0,63794.0,1.80975849]
[1724655583274,0.00134153,63795.0,63794.0,1.80875849]
[1724655583480,0.00234153,63795.0,63794.0,1.81075849]
[1724655583689,0.00234153,63795.0,63794.0,1.90882245]
[1724655584102,0.00234153,63795.0,63794.0,2.22233145]
[1724655590619,0.00134153,63795.0,63794.0,2.22133145]
[1724655591005,0.00234153,63795.0,63794.0,2.22233145]
[1724655591166,0.00134153,63795.0,63794.0,2.21333145]
[1724655592304,0.00034153,63795.0,63794.0,2.21233145]
[1724655592506,0.00034153,63795.0,63794.0,2.23733145]
[1724655592710,0.00034153,63795.0,63794.0,2.22333145]
[1724655592915,0.00034153,63795.0,63794.0,2.44053683]
[1724655593109,0.00034153,63795.0,63794.0,2.44353683]
[1724655593265,0.00034153,63795.0,63794.0,2.45753683]
[1724655594314,0.00034153,63795.0,63794.0,2.77104583]
[1724655594534,0.00034153,63795.0,63794.0,2.44353683]
[1724655595606,0.00034153,63795.0,63794.0,2.42953683]
[1724655595843,0.00034153,63795.0,63794.0,2.44353683]
[1724655596405,0.00034153,63795.0,63794.0,2.47153683]
[1724655596802,0.00034153,63795.0,63794.0,2.45753683]
[1724655596961,0.00034153,63795.0,63794.0,2.77104583]
[1724655597157,0.00034153,63795.0,63794.0,2.47153683]
[1724655597382,0.05987151,63800.0,63799.0,1.924178]
[1724655597583,0.05987151,63800.0,63799.0,2.35755165]
[1724655598564,0.05987151,63800.0,63799.0,2.67103565]
[1724655600151,0.05987151,63800.0,63799.0,2.69903565]
[1724655600586,0.05987151,63800.0,63799.0,2.38555165]
[1724655603324,0.05987151,63800.0,63799.0,1.87305165]
[1724655603778,0.05987151,63800.0,63799.0,1.77498769]
[1724655604802,0.05987151,63800.0,63799.0,2.07938769]
[1724655605005,0.05987151,63800.0,63799.0,2.17744073]
[1724655605208,0.05987151,63800.0,63799.0,2.36014073]
[1724655606852,0.05987151,63800.0,63799.0,2.67362473]
[1724655607070,0.05987151,63800.0,63799.0,2.78355473]
[1724655608814,0.05987151,63800.0,63799.0,2.36014073]
[1724655609896,0.05987151,63800.0,63799.0,2.05574073]
[1724655611715,0.05987151,63800.0,63799.0,2.37064073]
[1724655618816,0.00090751,63808.0,63807.0,1.097057]
[1724655619018,0.00090751,63808.0,63807.0,1.51543925]
[1724655621111,0.00090751,63808.0,63807.0,1.52743925]
[1724655622010,0.00090751,63808.0,63807.0,1.53643925]
[1724655622428,0.00090751,63808.0,63807.0,1.84988425]
[1724655622620,0.00090751,63808.0,63807.0,1.84088425]
[1724655622862,0.00090751,63808.0,63807.0,1.83788425]
[1724655623062,0.00090751,63808.0,63807.0,1.85643952]
[1724655623342,0.00090751,63808.0,63807.0,1.83543952]
[1724655623741,0.00090751,63808.0,63807.0,1.85843952]
[1724655625370,0.00090751,63808.0,63807.0,1.84843952]
[1724655625772,0.00090751,63808.0,63807.0,1.84643952]
[1724655626648,0.00090751,63808.0,63807.0,1.86043952]
[1724655626855,0.50970751,63808.0,63807.0,1.52399452]
[1724655627087,0.50970751,63808.0,63807.0,1.11249648]
[1724655627440,0.50970751,63808.0,63807.0,1.09849648]
[1724655627850,0.50970751,63808.0,63807.0,1.11249648]
[1724655629129,0.50970751,63808.0,63807.0,1.08749648]
[1724655629554,0.50970751,63808.0,63807.0,1.09849648]
[1724655629932,0.50970751,63808.0,63807.0,1.10149648]
[1724655630327,0.50970751,63808.0,63807.0,1.11249648]
[1724655631710,0.50470751,63808.0,63807.0,1.11249648]
[1724655632967,0.50470751,63808.0,63807.0,1.10149648]
[1724655633163,0.50470751,63808.0,63807.0,1.08749648]
[1724655633364,0.50470751,63808.0,63807.0,1.09649648]
[1724655633563,0.50470751,63808.0,63807.0,1.10849648]
[1724655633766,0.50470751,63808.0,63807.0,1.08749648]
[1724655633999,0.50470751,63808.0,63807.0,1.09649648]
[1724655634205,0.50470751,63808.0,63807.0,1.10849648]
[1724655636470,0.50561502,63808.0,63807.0,1.10849648]
[1724655638801,0.50561502,63808.0,63807.0,1.10194121]
[1724655639626,0.50561502,63808.0,63807.0,0.1621512]
[1724655639821,0.50561502,63808.0,63807.0,0.021]
[1724655640405,0.55235458,63808.0,63807.0,0.021]
[1724655640604,0.70907458,63808.0,63807.0,0.021]
[1724655640807,0.97577502,63808.0,63807.0,0.021]
[1724655641094,2.043713,63808.0,63807.0,0.021]
[1724655641280,1.95020904,63808.0,63807.0,0.021]
[1724655641437,2.0669974,63808.0,63807.0,0.021]
[1724655641817,1.95020904,63808.0,63807.0,0.021]
[1724655642358,2.06694293,63808.0,63807.0,0.021]
[1724655643373,2.06697093,63808.0,63807.0,0.021]
[1724655643568,1.95024164,63808.0,63807.0,0.021]
[1724655643839,2.04360406,63808.0,63807.0,0.021]
[1724655644041,2.04360406,63808.0,63805.0,0.00018866]
[1724655644042,0.783625,63806.0,63805.0,0.00018866]
[1724655644247,1.73037473,63806.0,63805.0,0.00018866]
[1724655644453,1.73033784,63806.0,63805.0,0.00018866]
[1724655644659,1.63702194,63806.0,63805.0,0.00018866]
[1724655644869,1.289425,63806.0,63805.0,0.00018866]
[1724655645069,1.73035455,63806.0,63805.0,0.00018866]
[1724655645476,1.35939717,63806.0,63805.0,0.01118866]
[1724655645676,1.3593975,63806.0,63805.0,0.01118866]
[1724655645892,1.73032116,63806.0,63805.0,0.01118866]
[1724655646099,1.73132116,63806.0,63805.0,0.024]
[1724655646505,2.64030788,63806.0,63805.0,0.024]
[1724655646919,1.097246,63796.0,63794.0,0.000825]
[1724655647124,1.56134649,63796.0,63794.0,0.000825]
[1724655647327,0.94687356,63796.0,63794.0,0.000825]
[1724655647567,0.900248,63796.0,63794.0,0.000825]
[1724655648178,0.43,63796.0,63794.0,0.000825]
[1724655648675,0.3083,63796.0,63795.0,0.5341151]
[1724655648876,0.07084539,63808.0,63801.0,0.156735]
[1724655648877,0.1952,63802.0,63801.0,0.156735]
[1724655649090,0.1952,63807.0,63802.0,0.156734]
[1724655649317,0.3128,63806.0,63802.0,0.156733]
[1724655649534,0.3128,63806.0,63796.0,0.1866]
[1724655649778,0.3128,63806.0,63800.0,0.156739]
[1724655650510,0.3128,63806.0,63802.0,0.001]
[1724655650711,0.156725,63806.0,63802.0,0.001]
[1724655650913,0.3307,63805.0,63802.0,0.001]
[1724655651121,0.18701838,63804.0,63802.0,0.001]
[1724655651303,0.18701838,63804.0,63801.0,0.003]
[1724655651304,0.487433,63803.0,63801.0,0.003]
[1724655651538,0.3217,63801.0,63797.0,0.05780905]
[1724655651711,0.32561866,63801.0,63798.0,0.0372964]
[1724655652332,0.32543004,63801.0,63798.0,0.0372964]
[1724655652755,0.32543004,63801.0,63800.0,0.001]
[1724655652922,0.32151138,63801.0,63798.0,0.0372964]
[1724655653128,0.32151138,63801.0,63798.0,0.0392964]
[1724655653339,0.32251138,63801.0,63799.0,0.05111974]
[1724655654560,0.32151138,63801.0,63799.0,0.05111974]
[1724655655004,0.32151138,63801.0,63799.0,0.05311974]
[1724655656058,0.32151138,63801.0,63799.0,0.05511974]
[1724655656294,0.32151138,63801.0,63800.0,0.03694457]
[1724655657559,0.32151138,63801.0,63800.0,0.03894457]
[1724655659572,0.32543001,63801.0,63800.0,0.002]
[1724655660017,0.32543001,63801.0,63800.0,0.002825]
[1724655661267,0.32151138,63801.0,63800.0,0.002825]
[1724655664401,0.32543005,63801.0,63800.0,0.002825]
[1724655665437,0.32543005,63801.0,63797.0,0.156746]
[1724655665652,0.32151138,63801.0,63798.0,0.0471896]
[1724655666934,0.3043,63805.0,63798.0,0.2446896]
[1724655667151,0.00090751,63806.0,63805.0,0.470182]
[1724655667745,0.00090751,63806.0,63805.0,0.156727]
[1724655668621,0.00090751,63806.0,63803.0,0.156731]
[1724655668622,0.00390751,63806.0,63803.0,0.156731]
[1724655668821,0.00390751,63806.0,63804.0,0.156729]
[1724655669024,0.3349,63805.0,63803.0,0.1473256]
[1724655670034,0.3349,63805.0,63804.0,0.158729]
[1724655670234,0.3349,63805.0,63804.0,0.156729]
[1724655670645,0.001,63805.0,63804.0,0.156729]
[1724655670846,0.001,63805.0,63804.0,0.56328726]
[1724655671048,0.003,63805.0,63804.0,0.89788726]
[1724655671253,0.003,63805.0,63804.0,1.21134626]
[1724655671995,0.001,63805.0,63804.0,1.21134626]
[1724655672369,0.470248,63796.0,63795.0,0.000825]
[1724655672608,0.986848,63796.0,63795.0,0.000825]
[1724655673240,1.300347,63796.0,63795.0,0.000825]
[1724655673890,1.300347,63796.0,63795.0,0.002825]
[1724655674292,1.300347,63796.0,63795.0,0.000825]
[1724655674724,1.309347,63796.0,63795.0,0.001825]
[1724655675118,1.300347,63796.0,63795.0,0.000825]
[1724655675332,1.309347,63796.0,63795.0,0.001825]
[1724655675540,1.317347,63796.0,63795.0,0.001825]
[1724655675949,1.309347,63796.0,63795.0,0.001825]
[1724655676363,1.317347,63796.0,63795.0,0.001825]
[1724655679603,1.36399369,63796.0,63795.0,0.001825]
[1724655681287,1.317347,63796.0,63795.0,0.001825]
[1724655681447,1.36399369,63796.0,63795.0,0.001825]
[1724655682266,0.31352,63792.0,63782.0,0.313567]
[1724655682464,0.635337,63789.0,63782.0,0.15613168]
[1724655682667,0.635337,63789.0,63779.0,0.1877]
[1724655682668,0.156788,63780.0,63779.0,0.1877]
[1724655683406,0.1945,63787.0,63779.0,0.1877]
[1724655683628,0.156787,63781.0,63779.0,0.1877]
[1724655683830,0.001,63780.0,63779.0,0.1917]
[1724655683980,0.001,63780.0,63779.0,0.2600101]
[1724655685035,0.001,63780.0,63779.0,0.2608351]
[1724655685381,0.001,63780.0,63779.0,0.2648351]
[1724655685787,0.001,63780.0,63779.0,0.008825]
[1724655685788,0.157788,63780.0,63779.0,0.008825]
[1724655685997,0.16170793,63780.0,63779.0,0.008825]
[1724655687104,0.47428493,63780.0,63779.0,0.000825]
[1724655687466,0.47528493,63780.0,63779.0,0.000825]
[1724655690453,0.78886193,63780.0,63779.0,0.000825]
[1724655691483,1.01851223,63780.0,63779.0,0.000825]
[1724655691711,1.30156193,63780.0,63779.0,0.000825]
[1724655692122,1.66476638,63780.0,63779.0,0.000825]
[1724655692322,1.61813893,63780.0,63779.0,0.000825]
[1724655692946,1.61713893,63780.0,63779.0,0.000825]
[1724655693556,1.61413893,63780.0,63779.0,0.000825]
[1724655693764,1.62413893,63780.0,63779.0,0.000825]
[1724655693968,1.63313893,63780.0,63779.0,0.000825]
[1724655694203,1.66073237,63780.0,63779.0,0.000825]
[1724655694575,1.68173237,63780.0,63779.0,0.000825]
[1724655694785,1.67173237,63780.0,63779.0,0.000825]
[1724655694981,1.66073237,63780.0,63779.0,0.000825]
[1724655695191,1.61413893,63780.0,63779.0,0.000825]
[1724655695391,1.62513893,63780.0,63779.0,0.000825]
[1724655695839,0.313618,63772.0,63764.0,0.186]
[1724655696050,0.313618,63772.0,63762.0,0.3088]
[1724655696051,0.313646,63766.0,63765.0,0.04948]
[1724655696405,0.156829,63764.0,63758.0,0.156841]
[1724655696637,0.16074995,63764.0,63758.0,0.156841]
[1724655697047,0.16074995,63764.0,63757.0,0.5125]
[1724655697253,0.16074995,63764.0,63757.0,0.669344]
[1724655697471,0.16074995,63764.0,63753.0,0.313709]
[1724655697472,0.156837,63761.0,63753.0,0.470562]
[1724655697670,0.156841,63759.0,63754.0,0.1935]
[1724655697844,0.00392118,63758.0,63754.0,0.1935]
[1724655698488,0.309,63762.0,63754.0,0.1935]
[1724655698489,0.313693,63757.0,63754.0,0.1935]
[1724655698717,0.313693,63757.0,63754.0,0.2611191]
[1724655698941,0.309,63762.0,63754.0,0.2611191]
[1724655698942,0.156842,63759.0,63754.0,0.2611191]
[1724655699312,0.309,63762.0,63754.0,0.2611191]
[1724655699313,0.156838,63760.0,63754.0,0.2611191]
[1724655699931,0.156843,63758.0,63754.0,0.2611191]
[1724655700194,0.156843,63758.0,63754.0,0.1935]
[1724655700968,0.156841,63759.0,63754.0,0.1935]
[1724655702339,0.156844,63758.0,63754.0,0.1935]
[1724655703123,0.156839,63760.0,63754.0,0.1935]
[1724655703323,0.156841,63759.0,63754.0,0.1935]
[1724655703524,0.156841,63759.0,63754.0,0.2768048]
[1724655703726,0.313686,63758.0,63751.0,0.000826]
[1724655704064,0.156848,63756.0,63751.0,0.000826]
[1724655704203,0.16077144,63755.0,63751.0,0.000826]
[1724655705216,0.15685,63755.0,63751.0,0.000826]
[1724655705568,0.156855,63753.0,63751.0,0.000826]
[1724655705823,0.3336,63755.0,63752.0,0.0190426]
[1724655706001,0.156855,63753.0,63752.0,0.0190426]
[1724655706553,0.16077664,63753.0,63752.0,0.0190426]
[1724655706754,0.15666831,63752.0,63751.0,0.000826]
[1724655707181,0.16177864,63753.0,63751.0,0.000826]
[1724655707381,0.16077864,63753.0,63751.0,0.000826]
[1724655707637,0.16177864,63753.0,63751.0,0.000826]
[1724655708052,0.001,63752.0,63751.0,0.000826]
[1724655708259,0.001,63752.0,63751.0,0.07008645]
[1724655708884,0.001,63752.0,63751.0,0.69652446]
[1724655709080,0.001,63752.0,63751.0,1.20784446]
[1724655709511,0.3165,63752.0,63751.0,0.38312446]
[1724655709719,0.001,63752.0,63751.0,0.07008645]
[1724655709923,0.001,63752.0,63751.0,0.000826]
[1724655710589,0.001,63752.0,63751.0,0.687086]
[1724655710768,0.313674,63761.0,63754.0,0.1931]
[1724655710769,0.156841,63759.0,63754.0,0.1931]
[1724655711405,0.313674,63761.0,63754.0,0.1931]
[1724655711597,0.313674,63761.0,63755.0,0.1000801]
[1724655711767,0.156841,63759.0,63755.0,0.1000801]
[1724655712128,0.156841,63759.0,63754.0,0.1931]
[1724655712330,0.156843,63758.0,63754.0,0.1931]
[1724655713356,0.15685,63755.0,63751.0,0.000826]
[1724655713557,0.00392146,63755.0,63752.0,0.1946]
[1724655713762,0.00392138,63755.0,63752.0,0.1946]
[1724655714022,0.3119,63756.0,63752.0,0.1946]
[1724655714218,0.21820538,63772.0,63752.0,0.1946]
[1724655714219,0.3255,63759.0,63752.0,0.1946]
[1724655714454,0.156848,63756.0,63752.0,0.2476526]
[1724655714659,0.007,63755.0,63752.0,0.2476526]
[1724655715069,0.012,63755.0,63752.0,0.2476526]
[1724655715272,0.012,63755.0,63753.0,0.3296]
[1724655715555,0.012,63755.0,63754.0,0.10486536]
[1724655716563,0.005,63755.0,63754.0,0.26171736]
[1724655716801,0.005,63755.0,63754.0,0.10486536]
[1724655717031,0.166841,63759.0,63754.0,0.10486536]
[1724655717273,0.166841,63759.0,63753.0,0.486454]
[1724655717274,0.156843,63758.0,63755.0,0.1153517]
[1724655717516,0.691646,63757.0,63751.0,0.000826]
[1724655717756,0.004,63755.0,63752.0,0.1995]
[1724655718008,0.004,63755.0,63753.0,0.0988017]
[1724655718250,0.31762642,63754.0,63753.0,0.0988017]
[1724655718448,0.31762642,63754.0,63751.0,0.000826]
[1724655718449,0.16077342,63754.0,63751.0,0.000826]
[1724655718656,0.31762942,63754.0,63751.0,0.000826]
[1724655718862,0.00392142,63754.0,63751.0,0.000826]
[1724655719064,0.156856,63753.0,63751.0,0.000826]
[1724655719297,0.0039217,63752.0,63751.0,0.000826]
[1724655720748,0.0069217,63752.0,63751.0,0.000826]
[1724655721011,0.0089217,63752.0,63751.0,0.000826]
[1724655721567,0.1657787,63752.0,63751.0,0.000826]
[1724655721772,0.161857,63752.0,63751.0,0.000826]
[1724655722673,0.00892171,63752.0,63751.0,0.000826]
[1724655722981,0.005,63752.0,63751.0,1.48327351]
[1724655723236,0.005,63752.0,63751.0,1.79699351]
[1724655723444,0.005,63752.0,63751.0,1.81999351]
[1724655723645,0.005,63752.0,63751.0,1.0133755]
[1724655723850,0.005,63752.0,63751.0,0.6996555]
[1724655724050,0.005,63752.0,63751.0,0.351986]
[1724655724260,0.005,63752.0,63751.0,0.667786]
[1724655724261,0.003,63752.0,63751.0,0.667786]
[1724655724525,0.00090861,63759.0,63751.0,0.824646]
[1724655724770,0.002,63752.0,63751.0,0.981506]
[1724655725030,0.002,63752.0,63751.0,1.1110291]
[1724655725288,0.002,63752.0,63751.0,0.195126]
[1724655725552,0.001,63752.0,63751.0,0.195126]
[1724655725811,0.001,63752.0,63751.0,0.000826]
[1724655726256,0.16077865,63752.0,63751.0,0.000826]
[1724655726483,0.001,63752.0,63751.0,0.000826]
[1724655726947,0.002,63752.0,63751.0,0.000826]
[1724655727435,0.003,63752.0,63751.0,0.0365055]
[1724655727848,0.002,63752.0,63751.0,0.0365055]
[1724655728051,0.005,63752.0,63751.0,0.0365055]
[1724655728729,0.161857,63752.0,63751.0,0.0365055]
[1724655729136,0.005,63752.0,63751.0,0.0365055]
[1724655729773,0.161857,63752.0,63751.0,0.0365055]
[1724655729981,0.47449367,63752.0,63751.0,0.000826]
[1724655730191,0.47749367,63752.0,63751.0,0.000826]
[1724655730400,0.47949367,63752.0,63751.0,0.000826]
[1724655731052,0.82110228,63752.0,63751.0,0.000826]
[1724655732105,1.13481728,63752.0,63751.0,0.000826]
[1724655732324,1.64143228,63752.0,63751.0,0.000826]
[1724655733358,1.63843228,63752.0,63751.0,0.000826]
[1724655733594,1.63643228,63752.0,63751.0,0.000826]
[1724655733806,1.64843228,63752.0,63751.0,0.000826]
[1724655734015,1.65943228,63752.0,63751.0,0.000826]
[1724655734699,1.64743228,63752.0,63751.0,0.000826]
[1724655734909,1.65943228,63752.0,63751.0,0.000826]
[1724655735115,1.5326208,63752.0,63751.0,0.000826]
[1724655735329,1.46261061,63752.0,63751.0,0.000826]
[1724655737098,1.14889561,63752.0,63751.0,0.000826]
[1724655737316,0.02390861,63752.0,63751.0,0.314126]
[1724655737555,0.02390861,63752.0,63751.0,0.5216586]
[1724655738206,0.02390861,63752.0,63751.0,1.0279786]
[1724655738413,0.01190861,63752.0,63751.0,0.7142586]
[1724655738614,0.01190861,63752.0,63751.0,0.5573986]
[1724655738821,0.02090861,63752.0,63751.0,0.5573986]
[1724655739257,0.02090861,63752.0,63751.0,0.7142586]
[1724655739885,0.00990861,63752.0,63751.0,0.7142586]
[1724655740095,0.01790861,63752.0,63751.0,0.7142586]
[1724655741141,0.01790861,63752.0,63751.0,0.350286]
[1724655743800,0.01790861,63752.0,63751.0,0.664006]
[1724655744432,0.01790861,63752.0,63751.0,0.987906]
[1724655744949,0.01790861,63752.0,63751.0,0.674186]
[1724655745444,0.01790861,63752.0,63751.0,0.517326]
[1724655745682,0.01790861,63752.0,63751.0,0.000826]
[1724655746159,0.17476561,63752.0,63751.0,0.000826]
[1724655746416,0.17868713,63752.0,63751.0,0.000826]
[1724655746649,0.02183013,63752.0,63751.0,0.000826]
[1724655746890,0.01790861,63752.0,63751.0,0.000826]
[1724655747421,0.06460991,63752.0,63751.0,0.000826]
[1724655747898,0.06460991,63752.0,63751.0,0.0354454]
[1724655748145,0.01790861,63752.0,63751.0,0.0354454]
[1724655749219,0.01790861,63752.0,63751.0,0.3692454]
[1724655750466,0.01790861,63752.0,63751.0,0.0354454]
[1724655751493,0.48848061,63752.0,63751.0,0.0354454]
[1724655751720,0.17476561,63752.0,63751.0,0.0354454]
[1724655751929,0.48848061,63752.0,63751.0,0.000826]
[1724655752351,0.55859116,63752.0,63751.0,0.000826]
[1724655752559,0.80219561,63752.0,63751.0,0.000826]
[1724655752765,1.15007067,63752.0,63751.0,0.000826]
[1724655752967,0.80219561,63752.0,63751.0,0.000826]
[1724655753173,0.87229814,63752.0,63751.0,0.000826]
[1724655753799,1.55764723,63752.0,63751.0,0.000826]
[1724655754218,1.87136223,63752.0,63751.0,0.000826]
[1724655754657,1.89454831,63752.0,63751.0,0.000826]
[1724655754869,1.77769739,63752.0,63751.0,0.000826]
[1724655756781,1.87114112,63752.0,63751.0,0.000826]
[1724655756993,1.77769739,63752.0,63751.0,0.000826]
[1724655757848,1.87113717,63752.0,63751.0,0.000826]
[1724655758467,1.77769739,63752.0,63751.0,0.000826]
[1724655758650,1.89454831,63752.0,63751.0,0.000826]
[1724655758892,1.96149739,63752.0,63751.0,0.000826]
[1724655759108,2.10163061,63752.0,63751.0,0.000826]
[1724655759529,2.44858161,63752.0,63751.0,0.000826]
[1724655759751,2.09260511,63752.0,63751.0,0.000826]
[1724655759962,1.96649739,63752.0,63751.0,0.000826]
[1724655760601,1.95249739,63752.0,63751.0,0.000826]
[1724655760839,1.95849739,63752.0,63751.0,0.000826]
[1724655762398,1.97249739,63752.0,63751.0,0.000826]
[1724655762605,2.1286754,63752.0,63751.0,0.000826]
[1724655763017,2.26878312,63752.0,63751.0,0.000826]
[1724655763238,2.1286754,63752.0,63751.0,0.000826]
[1724655765602,2.24543199,63752.0,63751.0,0.000826]
[1724655765809,2.1286754,63752.0,63751.0,0.000826]
[1724655767376,2.24543074,63752.0,63751.0,0.000826]
[1724655767692,2.24542849,63752.0,63751.0,0.000826]
[1724655767873,2.1286754,63752.0,63751.0,0.000826]
[1724655768725,2.24543956,63752.0,63751.0,0.000826]
[1724655768974,2.12870405,63752.0,63751.0,0.000826]
[1724655769603,2.12870792,63752.0,63751.0,0.000826]
[1724655770262,2.21592564,63752.0,63751.0,0.000826]
[1724655774775,2.84535564,63752.0,63751.0,0.000826]
[1724655775175,2.98543886,63752.0,63751.0,0.000826]
[1724655775374,3.33246879,63752.0,63751.0,0.000826]
[1724655775926,3.31846326,63752.0,63751.0,0.000826]
[1724655776123,3.33246326,63752.0,63751.0,0.000826]
[1724655776561,3.31846326,63752.0,63751.0,0.000826]
[1724655777238,3.33246326,63752.0,63751.0,0.000826]
[1724655777453,3.45849932,63752.0,63751.0,0.000826]
[1724655777652,2.9713917,63752.0,63751.0,0.000826]
[1724655778280,2.98540197,63752.0,63751.0,0.000826]
[1724655779422,2.58246925,63752.0,63751.0,0.000826]
[1724655779635,2.34587069,63752.0,63751.0,0.000826]
[1724655780074,2.25865297,63752.0,63751.0,0.000826]
[1724655781903,1.43374732,63752.0,63751.0,0.200226]
[1724655782095,0.02871982,63752.0,63751.0,0.5808286]
[1724655782300,0.02871982,63752.0,63751.0,0.528026]
[1724655782727,0.02871982,63752.0,63751.0,0.684886]
[1724655782934,0.01471982,63752.0,63751.0,0.684886]
[1724655783606,0.02871982,63752.0,63751.0,0.684886]
[1724655783782,0.01471982,63752.0,63751.0,0.784748]
[1724655784238,0.02371982,63752.0,63751.0,0.627888]
[1724655784458,0.00071982,63752.0,63751.0,0.627888]
[1724655784893,0.01871982,63752.0,63751.0,0.627888]
[1724655785309,0.00671982,63752.0,63751.0,0.627888]
[1724655785550,0.01371982,63752.0,63751.0,0.627888]
[1724655786188,0.00071982,63752.0,63751.0,0.627888]
[1724655786414,0.00771982,63752.0,63751.0,0.627888]
[1724655786634,0.01371982,63752.0,63751.0,0.627888]
[1724655786918,0.00771982,63752.0,63751.0,0.627888]
[1724655787135,0.01371982,63752.0,63751.0,0.627888]
[1724655789100,0.01371982,63752.0,63751.0,1.25464601]
[1724655789302,0.01371982,63752.0,63751.0,1.59136601]
[1724655790234,0.01371982,63752.0,63751.0,1.59788785]
[1724655790973,0.00071982,63752.0,63751.0,1.59788785]
[1724655791172,0.00571982,63752.0,63751.0,1.59788785]
[1724655791380,0.01171982,63752.0,63751.0,1.59888785]
[1724655791586,0.00090861,63759.0,63758.0,1.097901]
[1724655791801,0.00090861,63759.0,63758.0,1.87506911]
[1724655792043,0.00090861,63759.0,63758.0,2.09310362]
[1724655792302,0.00090861,63759.0,63758.0,2.11710362]
[1724655792773,0.00090751,63784.0,63776.0,0.5223]
[1724655792998,0.15768851,63784.0,63776.0,0.992695]
[1724655793202,0.15768851,63784.0,63777.0,0.472995]
[1724655793203,0.156782,63783.0,63777.0,0.472995]
[1724655793404,0.00090751,63784.0,63777.0,0.472995]
[1724655793405,0.156787,63781.0,63777.0,0.3162]
[1724655793655,0.00090751,63784.0,63777.0,0.3162]
[1724655793874,0.156789,63780.0,63777.0,0.3162]
[1724655794744,0.00090751,63784.0,63777.0,0.3162]
[1724655794949,0.00090751,63784.0,63778.0,0.09332026]
[1724655795165,0.00090751,63784.0,63780.0,0.156788]
[1724655795378,0.00090751,63784.0,63779.0,0.191]
[1724655795620,0.00090751,63784.0,63780.0,0.3189]
[1724655795859,0.008,63781.0,63780.0,0.3189]
[1724655796100,0.156783,63783.0,63780.0,0.43523184]
[1724655796341,0.156783,63783.0,63780.0,0.43623184]
[1724655796612,0.16868751,63784.0,63780.0,0.43623184]
[1724655796886,0.16868751,63784.0,63781.0,0.10335251]
[1724655796887,0.156782,63783.0,63781.0,0.10335251]
[1724655797030,0.01190751,63784.0,63781.0,0.10335251]
[1724655797213,0.00090751,63784.0,63781.0,0.10335251]
[1724655797426,0.01,63783.0,63781.0,0.10335251]
[1724655797647,0.01,63783.0,63782.0,0.09282225]
[1724655798075,0.166781,63783.0,63782.0,0.09282225]
[1724655798941,0.177781,63783.0,63782.0,0.09382225]
[1724655799153,0.501344,63783.0,63782.0,0.09382225]
[1724655799374,0.011,63783.0,63782.0,0.09382225]
[1724655799867,0.02,63783.0,63782.0,0.09482225]
[1724655801073,0.02,63783.0,63782.0,0.5324]
[1724655802137,0.02,63783.0,63782.0,0.68857801]
[1724655803591,0.02,63783.0,63782.0,0.68757801]
[1724655803592,0.011,63783.0,63782.0,0.68757801]
[1724655803759,0.011,63783.0,63782.0,0.69057801]
[1724655804169,0.00090751,63784.0,63782.0,0.68957801]
[1724655804423,0.00090751,63784.0,63783.0,0.22513581]
[1724655806102,0.00090751,63784.0,63783.0,0.22613581]
[1724655806306,0.00090751,63784.0,63783.0,0.0699578]
[1724655806522,0.00090751,63784.0,63783.0,0.0719578]
[1724655808559,0.00090751,63784.0,63783.0,0.0709578]
[1724655808933,0.00090751,63784.0,63783.0,0.0719578]
[1724655809704,0.00090751,63784.0,63783.0,0.0699578]
[1724655809954,0.00090751,63784.0,63783.0,0.0719578]
[1724655810327,0.00090751,63784.0,63783.0,0.0699578]
[1724655810527,0.00090751,63784.0,63783.0,0.0719578]
[1724655810866,0.00090751,63784.0,63783.0,0.0709578]
[1724655811203,0.00090751,63784.0,63783.0,0.0719578]
[1724655811824,0.00090751,63784.0,63783.0,0.0709578]
[1724655812022,0.00090751,63784.0,63783.0,0.0719578]
[1724655812463,0.00090751,63784.0,63783.0,0.0689578]
[1724655812678,0.00090751,63784.0,63783.0,0.0709578]
[1724655812890,0.00090751,63784.0,63783.0,0.73923581]
[1724655813104,0.00090751,63784.0,63783.0,0.76223581]
[1724655813545,0.00090751,63784.0,63783.0,0.76023581]
[1724655813942,0.00090751,63784.0,63783.0,0.76223581]
[1724655814156,0.00090751,63784.0,63783.0,0.75923581]
[1724655814564,0.00090751,63784.0,63783.0,0.76323581]
[1724655814975,0.00090751,63784.0,63783.0,0.76223581]
[1724655815198,0.00090751,63784.0,63783.0,0.76423581]
[1724655817362,0.00090751,63784.0,63783.0,0.76123581]
[1724655817485,0.00090751,63784.0,63783.0,0.75923581]
[1724655817658,0.00090751,63784.0,63783.0,0.76223581]
[1724655817869,0.00090751,63784.0,63783.0,0.76023581]
[1724655818067,0.00090751,63784.0,63783.0,0.75923581]
[1724655818273,0.00090751,63784.0,63783.0,0.76023581]
[1724655818762,0.00090751,63784.0,63783.0,0.5810578]
[1724655819417,0.00090751,63784.0,63783.0,0.5830578]
[1724655820282,0.00090751,63784.0,63783.0,0.0699578]
[1724655820490,0.00090751,63784.0,63783.0,0.002]
[1724655820491,0.51430751,63784.0,63783.0,0.002]
[1724655820704,0.51430751,63784.0,63783.0,0.001]
[1724655820919,0.51430751,63784.0,63772.0,0.8062]
[1724655820920,0.51430751,63784.0,63772.0,0.4659]
[1724655821134,0.51430751,63784.0,63769.0,0.00018877]
[1724655821135,0.16009828,63783.0,63769.0,0.00018877]
[1724655821354,0.3139,63782.0,63770.0,0.01827888]
[1724655821567,0.00392051,63781.0,63770.0,0.01827888]
[1724655821992,0.3139,63780.0,63770.0,0.01827888]
[1724655822216,0.15617801,63782.0,63770.0,0.01827888]
[1724655822217,0.3357,63778.0,63770.0,0.01827888]
[1724655822417,0.3357,63778.0,63769.0,0.00018877]
[1724655822418,0.0039205,63777.0,63769.0,0.00018877]
[1724655822846,0.0039205,63777.0,63769.0,0.00118877]